Cogmind - Beta 17.1 @@@ ROGUE MODE // 2026.09.13 @ 17:03:48 Player: stixxx Result: Destroyed by G-34 Mercenary with Small Laser Performance ------------- Evolutions (1) 500 Regions Visited (3) 600 Robots Destroyed (17) 85 Value Destroyed (369) 369 Prototype IDs (3) 60 Alien Tech Used (0) 0 Bonus (0) 0 TOTAL SCORE: 1614 Bonus ------- None Cogmind --------- Core Integrity 0/400 Matter 279/300 Energy 100/100 System Corruption 0% Temperature Cool (6) Movement Core (350) Ox6 Location -9/Materials Parts ------- > --- POWER (1) -------- (None) > --- PROPULSION (4) --- (None) > --- UTILITY (2) ------ Large Storage Unit > --- WEAPON (2) ------- (None) > --- INVENTORY (15) --- Light Treads Aluminum Leg Faulty Improved Flight Unit Peak State ------------ > --- POWER ------------ Light Ion Engine > --- PROPULSION ------- Flight Unit Improved Flight Unit Improved Flight Unit > --- UTILITY ---------- Large Storage Unit Experimental Sensor Array > --- WEAPON ----------- Improved Medium Laser > --- INVENTORY -------- Light Treads Aluminum Leg Improved Flight Unit [Rating: 21] Favorites ----------- Power Light Ion Engine Engine Light Ion Engine Propulsion Aluminum Leg Treads Light Treads Leg Aluminum Leg Hover Unit Hover Unit Flight Unit Flight Unit Utility Large Storage Unit Device Experimental Sensor Array Storage Large Storage Unit Weapon Assault Rifle Energy Gun Particle Gun Ballistic Gun Assault Rifle Launcher Grenade Launcher Special Melee Weapon Datajack Build | -11 -10 -10 -9 ------- Run | Yrd Mat Min Mat Slots Evolved 2 | . . . 2 Power . | . . . . Propulsion 2 | . . . 2 Utility . | . . . . Weapon . | . . . . Parts Attached 24 | 5 7 9 3 Power 5 | 1 1 3 . Engine 5 | 1 1 3 . Core . | . . . . Reactor . | . . . . Propulsion 9 | 2 2 3 2 Treads 1 | . . 1 . Leg 2 | 2 . . . Wheel . | . . . . Hover 2 | . 2 . . Flight 4 | . . 2 2 Utility 3 | . 2 1 . Device 2 | . 1 1 . Storage 1 | . 1 . . Processor . | . . . . Hackware . | . . . . Protection . | . . . . Artifact . | . . . . Weapon 7 | 2 2 2 1 Energy Gun 3 | 1 . 1 1 Energy Cannon . | . . . . Ballistic Gun 2 | 1 1 . . Ballistic Cannon . | . . . . Launcher 1 | . . 1 . Special Weapon . | . . . . Impact Weapon . | . . . . Slashing Weapon . | . . . . Piercing Weapon . | . . . . Special Melee Weapon 1 | . 1 . . Unidentified Prototypes 3 | . . 1 2 Parts Lost 13 | . 1 4 8 Power 2 | . . 1 1 Propulsion 5 | . . 1 4 Utility 2 | . . 1 1 Weapon 4 | . 1 1 2 Highest Loss Streak 6 | . 1 2 6 To Critical Strikes 1 | . . 1 . Average Backups 3 | . 3 4 2 Power . | . . . . Propulsion 1 | . . 2 2 Utility . | . . . . Weapon 1 | . 2 2 . Tool/Special . | . . . . Unused Backups 5 | . 1 1 3 Power . | . . . . Propulsion 2 | . . . 2 Utility 1 | . . 1 . Weapon 2 | . 1 . 1 Tool/Special . | . . . . Average Slot Usage (%) 72 | . 82 70 48 Engine 12 | . 14 13 6 Treads 1 | . . 3 . Leg 8 | . 19 . . Hover 4 | . 7 4 . Flight 9 | . . 15 19 Device 5 | . 4 5 6 Storage 11 | . 8 14 11 Energy Gun 2 | . . 5 . Ballistic Gun 7 | . 17 . . Launcher 4 | . . 7 4 Special Melee Weapon 3 | . 9 . . Peak Build Rating 21 | 4 7 14 21 Average Rating 7 | 3 5 8 10 On Entrance 6 | . 4 6 14 Avg Prop Armor Cover (%) 5 | . . . 5 Naked Turns . | . . . . Heaviest Build 27 | 5 27 27 27 Greatest Support 20 | 20 20 20 18 Greatest Overweight (x) 8 | . 8 4 6 Average Overweight (x) 1 | . . 2 3 Largest Inventory Capacity 15 | 5 15 15 15 Average Capacity 12 | 5 11 15 15 Most Carried 8 | 2 6 8 5 Average Carried 3 | . 3 4 2 Final Capacity 15 | 5 15 15 15 Final Carried 5 | . 5 3 3 Class Distribution -------------------- 100% | Mutant Dominant Class ---------------- Mutant | -10/Materials Mutant | -10/Mines Mutant | -9/Materials Resources | -11 -10 -10 -9 ----------- Run | Yrd Mat Min Mat Matter Collected 532 | 250 126 117 39 Remotely 49 | . . 49 . Salvage Created 392 | 38 126 129 99 Parts 28 | 1 7 11 9 Haulers Intercepted 2 | . . . 2 Recyclers Shooed . | . . . . Parts Field Recycled . | . . . . Retrieved Matter . | . . . . Parts Self-Destructed . | . . . . Prevented . | . . . . Parts Restored . | . . . . Kills | -11 -10 -10 -9 ------- Run | Yrd Mat Min Mat Combat Hostiles Destroyed 13 | 1 4 6 2 Melee 2 | . . 2 . Guns 9 | 1 4 4 . AOE 2 | . . . 2 Classes Destroyed 5 | 1 1 . 3 Builder 1 | . . . 1 Hauler 2 | . . . 2 Watcher 1 | . . . 1 Swarmer 6 | . 2 4 . Grunt 7 | 1 2 2 2 Best Kill Streak 6 | 1 2 3 6 Combat Bots Only 3 | 1 2 3 2 Max Kills in Single Turn 2 | 1 1 1 2 Gunslinging . | . . . . Exploded 1 | . . . 1 Melee 1 | . . 1 . Uniques/NPCs Destroyed . | . . . . Combat | -11 -10 -10 -9 -------- Run | Yrd Mat Min Mat Hostile Shots Fired 199 | 9 49 46 95 Missed 62 | 5 18 13 26 Hits 137 | 4 31 33 69 Projectile 137 | 4 31 33 69 Critical Strikes 3 | . 1 2 . Damage Taken 1544 | 43 359 363 779 Core 595 | 22 66 103 404 Absorbed by Shields . | . . . . Core Remaining (%) 57 | 91 . 23 . Volleys Fired 67 | 9 23 27 8 Largest 2 | 1 2 1 1 Hottest 65 | 50 40 65 30 Shots Fired 74 | 9 30 27 8 Gun 66 | 9 30 27 . Cannon . | . . . . Launcher 8 | . . . 8 Special . | . . . . Kinetic 30 | . 30 . . Thermal 36 | 9 . 27 . Explosive 8 | . . . 8 Electromagnetic . | . . . . Robot Hit Streak 6 | 5 5 5 6 Robot Miss Streak 3 | 2 3 3 1 Penetration Max . | . . . . Secondary Targets . | . . . . Shots Hit Robots 50 | 6 19 18 7 Core Hits 28 | 2 6 8 12 Critical Kills . | . . . . Critical Parts Destroyed . | . . . . Critical Strikes 2 | . . 2 . Burn 2 | . . 2 . Melee Attacks 1 | . 1 . . Impact . | . . . . Slashing . | . . . . Piercing . | . . . . Sneak Attacks 1 | . 1 . . Combat Hostiles . | . . . . Follow-up Attacks . | . . . . Damage Inflicted 1199 | 76 240 281 602 Guns 590 | 76 240 274 . Cannons . | . . . . Explosions 599 | . . . 599 Melee . | . . . . Ramming 10 | . . 7 3 Kinetic 240 | . 240 . . Thermal 350 | 76 . 274 . Explosive 599 | . . . 599 Electromagnetic . | . . . . Impact . | . . . . Slashing . | . . . . Piercing . | . . . . Highest Corruption . | . . . . Average Corruption . | . . . . Corruption Purged . | . . . . Corruption Blocked . | . . . . Overload Shots . | . . . . Overflow Damage 37 | . . . 37 Projectiles . | . . . . Explosions 37 | . . . 37 Melee . | . . . . Knockbacks . | . . . . Impact . | . . . . Kinetic . | . . . . Secondary . | . . . . Self-Inflicted Damage 22 | . . . 22 Shots 1 | . . . 1 Rammed 8 | . . 5 3 Targets Rammed 9 | . . 6 3 Kicked . | . . . . Crushed 1 | . . 1 . Highest Temperature 348 | 114 17 348 . Average Temperature 106 | 60 17 119 . Received Heat Transfer 714 | 24 156 120 414 Siege Activations . | . . . . Martial Activations . | . . . . Shielding Activations . | . . . . Robots Disrupted . | . . . . Combat Hostiles . | . . . . Robots Corrupted . | . . . . Combat Hostiles . | . . . . Parts Fried . | . . . . Impact Corruptions . | . . . . Robots Melted . | . . . . Combat Hostiles . | . . . . Parts Melted 3 | . . 3 . Heat Transferred 999 | 222 . 777 . Parts Sabotaged . | . . . . Parts Stolen . | . . . . Parts Stripped . | . . . . Power Chain Reactions . | . . . . Alert | -11 -10 -10 -9 ------- Run | Yrd Mat Min Mat Maximum Alert Level . | . . . . Low Security (%) 100 | 100 100 100 100 Level 1 . | . . . . Level 2 . | . . . . Level 3 . | . . . . Level 4 . | . . . . Level 5 . | . . . . High Security . | . . . . Max Security . | . . . . Peak Influence 93 | 20 50 45 93 Initial . | . . . . Average 8 | 2 6 6 24 Influence Increases 383 | 20 105 155 103 Destroy 0b10 Robot/C 260 | 20 80 120 40 Destroy 0b10 Robot/NC 20 | . . . 20 Destroy Leader 46 | . 20 20 6 Successful Hack 5 | . 5 . . Disable Machine 30 | . . 15 15 Destroy Structure 22 | . . . 22 Influence Decreases 383 | 20 105 155 103 Time Decay 320 | 20 105 135 60 Lost Part 63 | . . 20 43 Squads Dispatched 1 | . . . 1 Investigation . | . . . . Extermination . | . . . . Reinforcement 1 | . . . 1 Assault . | . . . . Garrison . | . . . . Intercept . | . . . . Searches Triggered . | . . . . Construction Impeded 1 | . . . 1 Haulers Reinforced . | . . . . Active Scanning Responses . | . . . . Cargo Convoy Interrupts . | . . . . Stealth | -11 -10 -10 -9 --------- Run | Yrd Mat Min Mat Distress Signals 1 | . . . 1 Communications Jammed . | . . . . Distress Signals . | . . . . Times Spotted 24 | 1 9 7 7 Peak Tracking Total 4 | 1 3 3 4 Tactical Retreats . | . . . . Traps | -11 -10 -10 -9 ------- Run | Yrd Mat Min Mat Traps Triggered . | . . . . Indirectly . | . . . . Trap Hack Attempts . | . . . . Triggered . | . . . . Disarmed . | . . . . Reprogrammed . | . . . . Reused . | . . . . Traps Extracted . | . . . . Installed . | . . . . Triggered . | . . . . Machines | -11 -10 -10 -9 ---------- Run | Yrd Mat Min Mat Machines Disabled 2 | . . 1 1 Max in Single Turn 1 | . . 1 1 Machines Repaired . | . . . . Machines Dismantled . | . . . . Machines Sabotaged . | . . . . Overloaded Fab Kills . | . . . . Hacking | -11 -10 -10 -9 --------- Run | Yrd Mat Min Mat Machines Accessed 2 | . 2 . . Terminals 1 | . 1 . . Fabricators . | . . . . Repair Stations . | . . . . Recycling Units 1 | . 1 . . Scanalyzers . | . . . . Garrison Access . | . . . . Total Hacks 5 | . 5 . . Successful 4 | . 4 . . Failed 1 | . 1 . . Catastrophic . | . . . . Database Lockouts . | . . . . Manual . | . . . . Terminals 3 | . 3 . . Fabricators . | . . . . Repair Stations . | . . . . Recycling Units 2 | . 2 . . Scanalyzers . | . . . . Garrison Access . | . . . . Terminal Hacks 2 | . 2 . . Record 1 | . 1 . . Zone Layout 1 | . 1 . . Fabricator Hacks . | . . . . Repair Station Hacks . | . . . . Recycling Unit Hacks 2 | . 2 . . Recycle Component 1 | . 1 . . Retrieve Components 1 | . 1 . . Scanalyzer . | . . . . Garrison Access Hacks . | . . . . Unauthorized Hacks . | . . . . Terminals . | . . . . Fabricators . | . . . . Repair Stations . | . . . . Recycling Units . | . . . . Scanalyzers . | . . . . Garrison Access . | . . . . Data Cores Recovered . | . . . . Used . | . . . . Hacking Detections 1 | . 1 . . Full Trace Events . | . . . . Feedback Events . | . . . . Feedback Blocked . | . . . . Robot Schematics Acquired . | . . . . Robots Built . | . . . . Authchips . | . . . . Time . | . . . . Total Robot Build Rating . | . . . . Part Schematics Acquired . | . . . . Parts Built . | . . . . Authchips . | . . . . Time . | . . . . Total Part Build Rating . | . . . . Part Studies Acquired . | . . . . Parts Repaired . | . . . . Time . | . . . . Parts Recycled 1 | . 1 . . Recycled Matter . | . . . . Retrieved Matter . | . . . . Retrieved Components 2 | . 2 . . Parts Scanalyzed . | . . . . Part Schematics Acquired . | . . . . Parts Damaged . | . . . . Bothacking | -11 -10 -10 -9 ------------ Run | Yrd Mat Min Mat Used RIF Installer . | . . . . Robots Hacked 1 | . 1 . . Non-combat 1 | . 1 . . Combat . | . . . . Robot Hacks Applied 1 | . 1 . . parse_system 1 | . 1 . . Relay Couplers Released . | . . . . Fabnet Peak Effective % . | . . . . Robots Rewired . | . . . . Allies Hacked . | . . . . Hacks Repelled . | . . . . Allies | -11 -10 -10 -9 -------- Run | Yrd Mat Min Mat Total Allies . | . . . . Largest Group . | . . . . Highest-Rated Group . | . . . . Highest-Rated Ally . | . . . . Total Orders . | . . . . Ally Attacks . | . . . . Total Damage . | . . . . Kills . | . . . . Allies Corrupted . | . . . . Allies Melted . | . . . . Intel | -11 -10 -10 -9 ------- Run | Yrd Mat Min Mat Active Infowar (turns) 411 | . . 271 140 Sensors 411 | . . 271 140 Robot Analysis Total . | . . . . Derelict Logs Recovered 1 | . . 1 . Drone Launches . | . . . . Drone Recoveries . | . . . . Exploration | -11 -10 -10 -9 ------------- Run | Yrd Mat Min Mat Turns Passed 1899 | 134 715 809 241 Spaces Moved 871 | 101 403 283 84 Core 35 | 22 4 . 9 Treads 74 | . . 74 . Legs 372 | 79 293 . . Wheels . | . . . . Hover 152 | . 106 46 . Flight 238 | . . 163 75 Fastest Speed 50 | 50 120 160 106 Average Speed 192 | 104 158 254 251 Slowest Speed 450 | 120 450 300 390 Overloaded Moves . | . . . . Propulsion Burnouts . | . . . . Robots Hopped . | . . . . Potential Cave-ins . | . . . . Cave-ins Triggered . | . . . . Exploration Rate (%) 29 | 9 39 58 10 Regions Visited 3 Branch Regions 1 Pre-discovered Areas . | . . . . Known Exits Taken 1 | . . 1 . Unknown Exits Taken 2 | 1 1 . . Scrap Searched 1 | . . 1 . Spaces Dug . | . . . . Terrain Destroyed 22 | . . . 22 Melee . | . . . . Projectile . | . . . . AOE 22 | . . . 22 Terrain Rammed . | . . . . Walls Destroyed . | . . . . Machines Disabled . | . . . . Actions | -11 -10 -10 -9 --------- Run | Yrd Mat Min Mat Total 1022 | 121 453 345 103 Wait 2 | . . 2 . Move 868 | 100 402 282 84 Hop . | . . . . Pick Up 30 | 5 13 8 4 Fast Attach . | . . . . Attach 24 | 5 7 9 3 Detach 9 | 1 3 5 . Swap . | . . . . Drop 12 | 1 4 6 1 Fire 67 | 9 23 27 8 Melee 1 | . 1 . . Ram 4 | . . 1 3 Kick . | . . . . Crush 5 | . . 5 . Escape Stasis . | . . . . Rewire . | . . . . Trap . | . . . . Miscellaneous . | . . . . Route ------- -11/Scrapyard -10/Materials -10/Mines (discovered 2 exits: *Mat x2) -9/Materials History --------- Turn | Location | Event 2 | -11/Scrapyard | Met Revision 17 54 | -11/Scrapyard | Discovered new exit (range 8) 135 | -11/Scrapyard | Entered Materials 303 | -10/Materials | Build established: Mutant 581 | -10/Materials | Discovered new exit (range 15) 850 | -10/Materials | Entered Mines 930 | -10/Mines | Core integrity fell below 50% 1379 | -10/Mines | Found a damaged Exp. Sensor Array with a note attached 1384 | -10/Mines | Found Prototype Device 1388 | -10/Mines | Identified Exp. Sensor Array 1546 | -10/Mines | Discovered new exit (range 10) 1554 | -10/Mines | A weapon hastily lodged in a ceiling crevice suddenly fell to the ground 1571 | -10/Mines | Identified exit to Materials 1659 | -10/Mines | Entered Materials 1659 | -9/Materials | Evolved 2 slots: Propulsion x2 1835 | -9/Materials | Lost 6 parts (1p2n1u2w) 1861 | -9/Materials | Core integrity fell below 50% 1887 | -9/Materials | Core integrity fell below 20% 1900 | -9/Materials | Destroyed by G-34 Mercenary with Small Laser Last Messages --------------- Flight Unit destroyed. U-05 Engineer lays Concrete. R-06 Scavenger collects Wheel. U-05 Engineer builds a Wall. U-05 Engineer forms the Earth. Faulty Imp. Medium Laser destroyed. R-06 Scavenger collects Prototype Engine. Exp. Sensor Array destroyed. Lgt. Ion Engine destroyed. R-06 Scavenger inserts Ion Engine into recycling unit. R-06 Scavenger inserts Wheel into recycling unit. R-06 Scavenger inserts Prototype Engine into recycling unit. Slammed into G-34 Mercenary. Broken Imp. Flight Unit destroyed. Slammed into G-34 Mercenary. Imp. Flight Unit destroyed. Slammed into G-34 Mercenary. Map ----- +----------------------------------------------------+ | ?????????????????????????????????????????????????? | | ?????????????????????????????????????????????????? | | ?????????????????????????????????????????????????? | | ?????????????????????????????????????????????????? | | ?????????????????????????????????????????????????? | | ? ????????????#####??????????????????????????????? | | ? #?????????# ?????????????????????????????? | | ? #?????????# ??????????????????????????????? | | " #?????????# ???????????????????????????????? | | " #?????????# #???????????????????????????????? | | " ??????????# #???????????????????????????????? | | ??????????# #???????????????????????????????? | | ???????????# #???????????????????????????????? | | ############## #????[??????????????????????????? | | #??[[[ ?????????????????????????? | | # [[ ?????????????????????????? | | + ??????????????????????????? | | #???????????????????????????????? | | #???????????????????????????????? | | = #???????????????????????????????? | | ######### ####???????????????????????????????? | | # #######???# #??????#+#????????? ? #?????????? | | ## #???????# ######## ########""" #?????????? | | ??????# /m????????? | | #?????# g #?????????? | | #?????# g @ #?????????? | | #######????##+###+##########+#### #??????????? | | ???????????# #????????????????????????? | | ???????????# """ """ #????????????????????????? | | ???????????# "Y" """ #????????????????????????? | | ???????????# " " """ #????????????????????????? | | ???????????# #????????????????????????? | | ???????????##############????????????????????????? | | | | | | | | | | | | | | | | | | | | | | | | | | | | | | | | | | | +----------------------------------------------------+ Best States ------------- Heat Dissipation 28 Energy Generation 10 Energy Capacity 125 Matter Stores 300 Matter Capacity 300 Sight Range 16 Robot Scan Range 20 Terrain Scan Density 10 Evasion (%) 55 Recoil Reduction 1 Item Schematics ----------------- None Robot Schematics ------------------ None Fabricated ------------ Nothing Repaired ---------- Nothing Studied --------- None Alien Tech Used ----------------- None Achievements -------------- Fist Fight Loot Pinata Organ Harvest Risk Taker Challenges ------------ None Game ------ Seed NavigationMeleeRedistributor Manual? 0 Play Time 00:30:32 Cumulative 1.2 hours Start 2026.09.13 @ 16:30:29 End 2026.09.13 @ 17:03:48 Sessions 1 Manual Loads 0 Difficulty Rogue Special Mode None Game No. 3 Rogue 3 Adventurer 0 Explorer 0 Win Type - Total 0 Types 0/0/0/0/0/0/0/0/0/0 Lore% 0 Gallery% 2 Achievement% 2 Wizard Run 0 Options --------- Layout 1 ASCII 0 Keyboard 1 Movement Numpad Keybinds 0 Fullscreen 1 Font 24/Smallcaps Map View 50x35 Zoom Use 0% Tactical HUD 0 Map Filters NONE Filters NONE Steam 1 RUN: f78cd64b-85fb-40b9-98f0-27d4ef726c0d